Cogmind - Beta 9.5 @@@ ROGUE MODE // 2020.04.04 @ 16:14:42 Player: Trione Result: Destroyed by exploding Fusion Modulator Performance ------------- Evolutions (0) 0 Regions Visited (1) 200 Robots Destroyed (22) 110 Value Destroyed (350) 350 Prototype IDs (0) 0 Alien Tech Used (0) 0 Bonus (0) 0 TOTAL SCORE: 660 Bonus ------- None Cogmind --------- Core Integrity 0/250 Matter 300/300 Energy 96/100 System Corruption 1% Temperature Cool (12) Movement Core (250) Ox4 Location -10/Materials Parts ------- > --- POWER (1) -------- (None) > --- PROPULSION (2) --- (None) > --- UTILITY (2) ------ Medium Storage Unit Utility Shielding > --- WEAPON (2) ------- Beam Cannon Assault Rifle > --- INVENTORY (8) ---- Light Treads Light Treads Compact Wheel Utility Shielding Beam Cannon Peak State ------------ > --- POWER ------------ Ion Engine > --- PROPULSION ------- Wheel Compact Wheel > --- UTILITY ---------- Small Storage Unit Tractor Beam > --- WEAPON ----------- Assault Rifle Light Assault Rifle > --- INVENTORY -------- Light Ion Engine Light Treads Light Treads Assault Rifle [Rating: 7] Favorites ----------- Power Ion Engine Engine Ion Engine Propulsion Compact Wheel Wheel Compact Wheel Utility Medium Storage Unit Device Tractor Beam Storage Medium Storage Unit Protection Utility Shielding Weapon Assault Rifle Energy Cannon Beam Cannon Ballistic Gun Assault Rifle Build | -11 -10 ------- Run | Scr Mat Slots Evolved . | . . Power . | . . Propulsion . | . . Utility . | . . Weapon . | . . Parts Attached 19 | 7 12 Power 3 | 1 2 Engine 3 | 1 2 Core . | . . Reactor . | . . Propulsion 4 | 2 2 Treads . | . . Leg . | . . Wheel 4 | 2 2 Hover . | . . Flight . | . . Utility 4 | 2 2 Device 1 | 1 . Storage 2 | 1 1 Processor . | . . Hackware . | . . Protection 1 | . 1 Artifact . | . . Weapon 8 | 2 6 Energy Gun . | . . Energy Cannon 3 | . 3 Ballistic Gun 5 | 2 3 Ballistic Cannon . | . . Launcher . | . . Special Weapon . | . . Impact Weapon . | . . Slashing Weapon . | . . Piercing Weapon . | . . Special Melee Weapon . | . . Unidentified Prototypes . | . . Parts Lost 9 | . 9 Power 2 | . 2 Propulsion 3 | . 3 Utility 1 | . 1 Weapon 3 | . 3 Highest Loss Streak 5 | . 5 Average Slot Usage (%) 98 | . 98 Engine 13 | . 13 Wheel 27 | . 27 Device 2 | . 2 Storage 14 | . 14 Protection 11 | . 11 Energy Cannon 8 | . 8 Ballistic Gun 19 | . 19 Naked Turns . | . . Heaviest Build 19 | 13 19 Greatest Support 32 | 26 32 Greatest Overweight (x) 4 | 3 4 Average Overweight (x) . | . . Largest Inventory Capacity 8 | 6 8 Average Capacity 7 | 5 7 Most Carried 8 | 5 8 Average Carried 6 | 4 7 Final Capacity 8 | 6 8 Final Carried 5 | 5 5 Class Distribution -------------------- 100% | Mutant Dominant Class ---------------- Mutant | -10/Materials Resources | -11 -10 ----------- Run | Scr Mat Matter Collected 688 | 326 362 Remotely 210 | 185 25 Salvage Created 660 | 144 516 Parts 40 | 8 32 Haulers Intercepted . | . . Recyclers Shooed 1 | . 1 Parts Field Recycled . | . . Retrieved Matter . | . . Parts Self-Destructed . | . . Prevented . | . . Kills | -11 -10 ------- Run | Scr Mat Combat Hostiles Destroyed 11 | . 11 Guns 8 | . 8 Cannons 3 | . 3 Classes Destroyed 7 | 3 4 Worker 2 | 1 1 Tunneler 4 | 3 1 Recycler 2 | 1 1 Mechanic 1 | . 1 Watcher 2 | . 2 Swarmer 6 | . 6 Grunt 5 | . 5 Best Kill Streak 3 | 2 3 Combat Bots Only 3 | . 3 Max Kills in Single Turn 1 | 1 1 Gunslinging . | . . Exploded . | . . Melee . | . . Uniques/NPCs Destroyed . | . . Combat | -11 -10 -------- Run | Scr Mat Damage Taken 882 | . 882 Core 317 | . 317 Absorbed by Shields . | . . Core Remaining (%) 100 | 100 . Volleys Fired 93 | 14 79 Largest 2 | 2 2 Hottest 80 | 40 80 Shots Fired 184 | 28 156 Gun 135 | 28 107 Cannon 49 | . 49 Launcher . | . . Special . | . . Kinetic 135 | 28 107 Thermal 49 | . 49 Explosive . | . . Electromagnetic . | . . Robot Hit Streak 9 | 7 9 Robot Miss Streak 5 | 3 5 Penetration Max . | . . Secondary Targets 2 | . 2 Max Gunslinging Chain 1 | . 1 Shots Hit Robots 102 | 16 86 Core Hits 35 | 8 27 Critical Hits 2 | 1 1 Critical Kills 1 | 1 . Critical Parts Destroyed 1 | . 1 Melee Attacks . | . . Impact . | . . Slashing . | . . Piercing . | . . Sneak Attacks . | . . Combat Hostiles . | . . Follow-up Attacks . | . . Damage Inflicted 1450 | 155 1295 Guns 905 | 155 750 Cannons 545 | . 545 Explosions . | . . Melee . | . . Ramming . | . . Kinetic 905 | 155 750 Thermal 545 | . 545 Explosive . | . . Electromagnetic . | . . Impact . | . . Slashing . | . . Piercing . | . . Highest Corruption 1 | . 1 Average Corruption 1 | . 1 Corruption Purged . | . . Overload Shots . | . . Overflow Damage 13 | . 13 Projectiles 13 | . 13 Explosions . | . . Melee . | . . Knockbacks . | . . Impact . | . . Kinetic . | . . Secondary . | . . Self-Inflicted Damage . | . . Shots . | . . Rammed . | . . Targets Rammed . | . . Kicked . | . . Crushed . | . . Highest Temperature 321 | . 321 Average Temperature 80 | . 80 Received Heat Transfer 273 | . 273 Siege Activations . | . . Robots Corrupted . | . . Combat Hostiles . | . . Parts Fried . | . . Impact Corruptions . | . . Robots Melted . | . . Combat Hostiles . | . . Parts Melted . | . . Heat Transferred 1147 | . 1147 Parts Sabotaged . | . . Parts Stolen . | . . Parts Stripped . | . . Power Chain Reactions . | . . Missiles Intercepted . | . . Alert | -11 -10 ------- Run | Scr Mat Peak Influence 237 | 25 237 Average Influence 100 | 9 116 Maximum Alert Level 1 | . 1 Low Security (%) 86 | 100 83 Level 1 13 | . 16 Level 2 . | . . Level 3 . | . . Level 4 . | . . Level 5 . | . . High Security . | . . Max Security . | . . Squads Dispatched 2 | . 2 Investigation . | . . Extermination . | . . Reinforcement 2 | . 2 Assault . | . . Garrison . | . . Intercept . | . . Construction Impeded . | . . Haulers Reinforced . | . . Stealth | -11 -10 --------- Run | Scr Mat Distress Signals 2 | . 2 Communications Jammed . | . . Distress Signals . | . . Times Spotted 26 | . 26 Peak Tracking Total 4 | . 4 Tactical Retreats 2 | . 2 Traps | -11 -10 ------- Run | Scr Mat Traps Triggered 3 | . 3 Indirectly . | . . Trap Hack Attempts . | . . Triggered . | . . Disarmed . | . . Reprogrammed . | . . Reused . | . . Traps Extracted . | . . Installed . | . . Triggered . | . . Machines | -11 -10 ---------- Run | Scr Mat Machines Disabled 2 | . 2 Max in Single Turn 1 | . 1 Machines Sabotaged . | . . Garrisons Compromised . | . . Overloaded Fab Kills . | . . Fab Network Shutdowns . | . . Hacking | -11 -10 --------- Run | Scr Mat Machines Accessed 6 | . 6 Terminals 4 | . 4 Fabricators . | . . Repair Stations . | . . Recycling Units 2 | . 2 Scanalyzers . | . . Garrison Access . | . . Total Hacks 9 | . 9 Successful 7 | . 7 Failed 2 | . 2 Catastrophic . | . . Database Lockouts . | . . Manual 7 | . 7 Terminals 7 | . 7 Fabricators . | . . Repair Stations . | . . Recycling Units 2 | . 2 Scanalyzers . | . . Garrison Access . | . . Terminal Hacks 1 | . 1 Zone Layout 1 | . 1 Fabricator Hacks . | . . Repair Station Hacks . | . . Recycling Unit Hacks 2 | . 2 Retrieve Components 2 | . 2 Scanalyzer . | . . Garrison Access Hacks . | . . Unauthorized Hacks 8 | . 8 Terminals 4 | . 4 Track 4 | . 4 Fabricators . | . . Repair Stations . | . . Recycling Units . | . . Scanalyzers . | . . Garrison Access . | . . Data Cores Recovered . | . . Used . | . . Hacking Detections 2 | . 2 Full Trace Events . | . . Feedback Events . | . . Feedback Blocked . | . . Robot Schematics Acquired . | . . Robots Built . | . . Matter . | . . Time . | . . Total Robot Build Rating . | . . Part Schematics Acquired . | . . Parts Built . | . . Matter . | . . Time . | . . Total Part Build Rating . | . . Parts Repaired . | . . Time . | . . Parts Recycled . | . . Recycled Matter . | . . Retrieved Matter . | . . Retrieved Components 1 | . 1 Parts Scanalyzed . | . . Part Schematics Acquired . | . . Parts Damaged . | . . Bothacking | -11 -10 ------------ Run | Scr Mat Used RIF Installer . | . . Robots Hacked . | . . Non-combat . | . . Combat . | . . Robot Hacks Applied . | . . Relay Couplers Released . | . . Robots Rewired . | . . Allies Hacked . | . . Hacks Repelled . | . . Allies | -11 -10 -------- Run | Scr Mat Total Allies . | . . Largest Group . | . . Highest-Rated Group . | . . Highest-Rated Ally . | . . Total Orders . | . . Ally Attacks . | . . Total Damage . | . . Kills . | . . Allies Corrupted . | . . Allies Melted . | . . Intel | -11 -10 ------- Run | Scr Mat Robot Analysis Total . | . . Derelict Logs Recovered . | . . Drone Launches . | . . Drone Recoveries . | . . Exploration | -11 -10 ------------- Run | Scr Mat Turns Passed 881 | 138 743 Spaces Moved 600 | 89 511 Core 22 | 20 2 Treads . | . . Legs . | . . Wheels 578 | 69 509 Hover . | . . Flight . | . . Fastest Speed 50 | 50 90 Average Speed 92 | 94 91 Slowest Speed 250 | 200 250 Overloaded Moves . | . . Propulsion Burnouts . | . . Robots Hopped . | . . Cave-ins Triggered . | . . Exploration Rate (%) 42 | 6 78 Regions Visited 1 Branch Regions . Pre-discovered Areas . | . . Known Exits Taken . | . . Unknown Exits Taken 1 | 1 . Scrap Searched . | . . Spaces Dug . | . . Terrain Destroyed . | . . Melee . | . . Projectile . | . . AOE . | . . Actions | -11 -10 --------- Run | Scr Mat Total 746 | 114 632 Wait 18 | . 18 Move 599 | 88 511 Hop . | . . Pick Up 13 | 5 8 Fast Attach 10 | 7 3 Attach 6 | . 6 Detach . | . . Swap 3 | . 3 Drop 4 | . 4 Fire 93 | 14 79 Melee . | . . Ram . | . . Kick . | . . Crush . | . . Escape Stasis . | . . Rewire . | . . Trap . | . . Miscellaneous . | . . Route ------- -11/Scrapyard -10/Materials (discovered 3 exits: [*Mat x2] / [*Min]) History --------- Turn | Location | Event 24 | -11/Scrapyard | Discovered new exit (range 16) 139 | -11/Scrapyard | Entered Materials 197 | -10/Materials | Discovered new exit (range 14) 316 | -10/Materials | Build established: Mutant 408 | -10/Materials | Discovered new exit (range 16) 663 | -10/Materials | Core integrity fell below 50% 696 | -10/Materials | Discovered new exit (range 15) 868 | -10/Materials | Core integrity fell below 20% 882 | -10/Materials | Destroyed by exploding Fusion Modulator Last Messages --------------- 00813_ K-01 Serf collects debris. 00822_ K-01 Serf cleans the Electrolysis Chamber. 00827_ K-01 Serf collects debris. 00832_ K-01 Serf cleans the Electrolysis Chamber. 00832_ A-02 Transporter suffers critical hit. 00832_ Destroyed Lgt. Treads. 00846_ Com. Wheel destroyed. 00850_ Lgt. Ion Engine destroyed. 00853_ K-01 Serf collects debris. 00856_ G-47 Trooper destroyed. 00857_ K-01 Serf cleans the Electrolysis Chamber. 00859_ Beam Cannon destroyed. 00860_ K-01 Serf cleans the Electrolysis Chamber. 00863_ Assault Rifle destroyed. 00871_ Wheel destroyed. 00875_ G-34 Mercenary destroyed. 00877_ U-05 Engineer builds a Door. 00878_ Acquired 37 matter. 00878_ K-01 Serf collects debris. 00882_ Fusion Modulator explodes. Map ----- +----------------------------------------------------+ | ??????????????????????????????? | | ??????????????????????????????? | | ??????????????????????????????? | | ??????????????????????????????? | | ??????????????????????????????? | | ??????????????????????????????? | | ??????????????????????????????? | | ??????????"???????????????????? | | ?????????? ??????? #????????? | | ???????###/####### #????????? | | ######## #????????? | | # +????????? | | # """ " #????????? | | # """ T #????????? | | # "" " #????????? | | + #????????? | | # #????????? | | # """ """ #??####### | | #+###### """ """ #??# # | | """ """ #??# " # | | = #??# T # | | * ! % #??# " # | | = ###### #??# # | | #????# #??# # | | #????# #### # | | " "" #????# ! =#@ # | | """"" #????# %k # | | " " " #????#!! [# # | | #????#! u# # | | #????# !! # # | | ###########????# !! ####### | | ???????????????# #?????? | | ???????????????# #?????? | | ???????????????###### #?????? | | ????????????????????# #?????? | | ????????????????????# #?????? | | ????????????????????# #?????? | | #???????????????????+ +?????? | | #???????????????????# # ????? | | #???????????????????# # ????? | | ????????????????????# #?"???? | | ????????????????????# #?????? | | ##??????????????????? ??????? | | #????????????????????????????? | | #????????????????????????????? | | #????????????????????????????? | | #????????????????????????????? | | #????????????????????????????? | | ##????????????????????????????? | | #?????????????????????????????? | +----------------------------------------------------+ Best States ------------- Heat Dissipation 25 Energy Generation 10 Energy Capacity 250 Matter Stores 300 Matter Capacity 300 Sight Range 16 Terrain Scan Density 10 Utility Shielding 33 Evasion (%) 50 Item Schematics ----------------- None Robot Schematics ------------------ None Fabricated ------------ Nothing Alien Tech Used ----------------- None Achievements -------------- None Challenges ------------ None Game ------ Seed DefenseCoreWand Manual? 0 Play Time 00:11:23 Cumulative 978.7 hours Start 2020.04.04 @ 16:08:16 End 2020.04.04 @ 16:14:42 Sessions 1 Manual Loads 0 Difficulty Rogue Special Mode None Game No. 376 Rogue 376 Adventurer 0 Explorer 0 Win Type - Total 24 Types 13/1/7/0/0/0/3 Lore% 96 Gallery% 97 Achievement% 83 Wizard Run 0 Options --------- ASCII 0 Keyboard 1 Movement Vi Keybinds 0 Fullscreen 0 Font 12/Crisp Map View 76x50 Tactical HUD 1 Map Filters NONE Filters NONE Steam 1 RUN: 35f1aed2-73b6-4d05-b328-8f10fd5e83e6